bitfinex/quotes_SOLUSD_20250903
["timestamp","ask_amount","ask_price","bid_price","bid_amount"]
[1756915660493,0.71,212.23,212.22,3.26526533]
[1756915660886,0.71,212.23,212.22,13.59559401]
[1756915662199,0.67,212.23,212.22,3.26526533]
[1756915662381,0.67,212.23,212.22,16.86085934]
[1756915663295,0.67,212.25,212.23,13.59559401]
[1756915663600,0.67,212.24,212.22,13.59559401]
[1756915663788,0.67,212.24,212.22,16.86085934]
[1756915664281,36.82,212.27,212.22,16.86085934]
[1756915664484,0.67,212.26,212.22,21.5729442]
[1756915664683,0.67,212.25,212.22,21.5729442]
[1756915664885,0.67,212.24,212.22,18.30767887]
[1756915665494,0.67,212.23,212.22,13.59559401]
[1756915665991,0.67,212.25,212.22,13.59559401]
[1756915666213,0.67,212.25,212.22,18.30768436]
[1756915666394,0.67,212.25,212.22,4.71209035]
[1756915666577,0.67,212.25,212.23,13.59559401]
[1756915667303,3.93526533,212.24,212.21,13.59559401]
[1756915667605,3.93526533,212.23,212.18,18.30838233]
[1756915667778,3.93526533,212.23,212.19,13.59559401]
[1756915667980,0.67,212.23,212.19,13.59559401]
[1756915668180,0.67,212.22,212.19,13.59559401]
[1756915668393,0.67,212.22,212.21,13.59559401]
[1756915669212,3.93526533,212.24,212.21,13.59559401]
[1756915669496,0.67,212.23,212.21,13.59559401]
[1756915671097,3.93526533,212.23,212.18,4.71278434]
[1756915671298,3.93526533,212.22,212.19,13.59559401]
[1756915671675,3.93526533,212.22,212.19,39.59559401]
[1756915671877,0.67,212.22,212.19,39.59559401]
[1756915672479,0.67,212.22,212.19,44.30829602]
[1756915672906,3.26526533,212.23,212.19,44.30829602]
[1756915673105,3.93526533,212.23,212.19,44.30829602]
[1756915673314,0.67,212.25,212.19,47.57356135]
[1756915673482,3.32526533,212.24,212.19,44.30829602]
[1756915673984,0.06,212.24,212.19,44.30829602]
[1756915674178,0.06,212.24,212.21,3.26526533]
[1756915674395,0.06,212.24,212.23,16.86085934]
[1756915674584,0.06,212.24,212.23,21.57272853]
[1756915675702,0.06,212.24,212.23,47.85705167]
[1756915676807,0.06,212.24,212.23,86.52522462]
[1756915677180,0.06,212.24,212.23,49.74522462]
[1756915679399,0.06,212.24,212.23,46.47995929]
[1756915679601,0.06,212.24,212.23,83.25995929]
[1756915679809,0.06,212.24,212.23,86.52522462]
[1756915682694,0.06,212.24,212.23,84.63705167]
[1756915683009,0.06,212.24,212.23,47.85705167]
[1756915683210,0.06,212.24,212.23,84.63705167]
[1756915684792,0.06,212.24,212.23,86.5251355]
[1756915684997,0.06,212.24,212.23,60.5251355]
[1756915685899,0.06,212.24,212.23,23.7451355]
[1756915686103,0.06,212.24,212.23,60.5251355]
[1756915687110,0.06,212.24,212.23,86.5251355]
[1756915690211,0.06,212.24,212.23,165.1251355]
[1756915690605,0.73,212.24,212.23,135.57554703]
[1756915690803,0.06,212.24,212.23,136.95272853]
[1756915691202,0.06,212.24,212.23,137.23705167]
[1756915691916,0.06,212.24,212.23,163.23705167]
[1756915692115,0.06,212.24,212.23,84.63705167]
[1756915692413,0.06,212.24,212.23,85.20247597]
[1756915693310,0.06,212.24,212.23,87.09047068]
[1756915695506,0.06,212.24,212.23,88.91417571]
[1756915697616,0.06,212.24,212.23,83.80520535]
[1756915697815,0.06,212.24,212.23,83.52088221]
[1756915698118,0.76,212.24,212.23,82.95545791]
[1756915698297,0.06,212.24,212.23,88.60985257]
[1756915698505,0.06,212.24,212.23,88.89417571]
[1756915700917,0.76,212.24,212.23,52.13417571]
[1756915701103,0.76,212.24,212.23,88.60985257]
[1756915701298,0.76,212.24,212.23,88.75201414]
[1756915701704,0.76,212.24,212.23,88.89417571]
[1756915704022,0.76,212.24,212.23,20.76088221]
[1756915704213,5.84897036,212.24,212.23,13.59559401]
[1756915704812,5.84897036,212.24,212.2,4.71246227]
[1756915705010,5.08897036,212.21,212.18,41.47277201]
[1756915705323,5.78897036,212.2,212.19,19.44456437]
[1756915705519,5.78897036,212.2,212.19,13.59559401]
[1756915705820,0.7,212.2,212.19,18.30835144]
[1756915709625,0.7,212.2,212.19,13.59559401]
[1756915709838,10.5015203,212.2,212.06,4.71564651]
[1756915710007,5.08897036,212.12,212.11,5.08897036]
[1756915710202,5.78897036,212.12,212.11,18.68456437]
[1756915710410,5.78897036,212.12,212.11,13.59559401]
[1756915711128,0.7,212.12,212.11,13.59559401]
[1756915711627,0.7,212.12,212.11,18.31012892]
[1756915713230,0.7,212.14,212.12,13.59559401]
[1756915713428,0.7,212.13,212.12,13.59559401]
[1756915713826,5.78897036,212.13,212.12,13.59559401]
[1756915714132,0.7,212.13,212.11,4.71453491]
[1756915714434,5.08897036,212.13,212.12,13.59559401]
[1756915714818,0.7,212.15,212.12,13.59559401]
[1756915715022,5.08897036,212.13,212.12,13.59559401]
[1756915715212,0.7,212.15,212.13,4.71409041]
[1756915715408,26.0,212.2,212.14,13.59559401]
[1756915715917,0.7,212.19,212.14,13.59559401]
[1756915716117,0.7,212.18,212.14,13.59559401]
[1756915716327,0.7,212.17,212.14,13.59559401]
[1756915716539,5.08897036,212.15,212.1,18.3103512]
[1756915716727,5.08897036,212.11,212.1,18.3103512]
[1756915716917,5.78897036,212.11,212.1,18.3103512]
[1756915720226,0.7,212.11,212.1,18.3103512]
[1756915720428,5.78897036,212.11,212.1,18.3103512]
[1756915721721,5.08897036,212.12,212.1,18.3103512]
[1756915722228,5.80897036,212.12,212.1,18.3103512]
[1756915722743,5.80897036,212.11,212.1,18.3103512]
[1756915723710,0.72,212.11,212.1,18.3103512]
[1756915723934,5.80897036,212.11,212.1,18.3103512]
[1756915725217,0.72,212.13,212.1,18.3103512]
[1756915725429,5.08897036,212.11,212.1,18.3103512]
[1756915725925,5.80897036,212.12,212.1,18.3103512]
[1756915726220,5.86897036,212.12,212.1,18.3103512]
[1756915726517,5.14897036,212.12,212.1,18.3103512]
[1756915726724,0.06,212.12,212.1,18.3103512]
[1756915726929,5.14897036,212.12,212.1,18.3103512]
[1756915727723,5.80897036,212.11,212.1,18.3103512]
[1756915728234,5.08897036,212.11,212.1,18.3103512]
[1756915728443,5.14897036,212.12,212.1,18.3103512]
[1756915728736,5.86897036,212.12,212.1,18.3103512]
[1756915729827,5.14897036,212.12,212.1,18.3103512]
[1756915730535,5.80897036,212.11,212.1,18.3103512]
[1756915734137,0.06,212.12,212.11,13.87991715]
[1756915734337,5.14897036,212.12,212.11,13.59559401]
[1756915735142,5.86897036,212.12,212.11,13.59559401]
[1756915739854,5.86897036,212.12,212.07,5.86897036]
[1756915740035,5.08897036,212.08,212.05,4.71567651]
[1756915740231,0.72,212.07,212.06,13.59559401]
[1756915741457,5.80897036,212.07,212.06,13.59559401]
[1756915741628,5.08897036,212.07,212.04,13.59559401]
[1756915741830,5.08897036,212.05,212.04,13.59559401]
[1756915742148,5.80897036,212.05,212.04,13.59559401]
[1756915743135,5.80897036,212.05,212.04,18.31168531]
[1756915744453,5.80897036,212.05,212.04,13.59559401]
[1756915744825,0.10508038,212.19,212.04,4.7160913]
[1756915745155,10.89794072,212.16,212.07,13.59559401]
[1756915745448,3.51095759,212.15,212.07,13.59559401]
[1756915745646,3.51095759,212.14,212.04,19.89491962]
[1756915745843,0.06,212.07,212.05,13.59559401]
[1756915746230,5.08897036,212.06,212.05,33.49051363]
[1756915749236,5.08897036,212.06,212.02,10.89794072]
[1756915749237,5.80897036,212.06,212.02,10.89794072]
[1756915749432,0.72,212.05,212.03,19.89491962]
[1756915749633,0.72,212.04,212.03,19.89491962]
[1756915750542,5.80897036,212.04,212.03,19.89491962]
[1756915751151,0.72,212.04,212.03,19.89491962]
[1756915751353,5.80897036,212.04,212.03,19.89491962]
[1756915751941,5.80897036,212.04,212.02,13.59559401]
[1756915752141,5.08897036,212.03,212.02,13.59559401]
[1756915754036,5.79897036,212.03,212.0,0.03]
[1756915754240,5.08897036,212.01,212.0,0.03]
[1756915754748,5.08897036,212.01,211.97,0.03]
[1756915754749,26.0,211.98,211.97,0.03]
[1756915754941,31.08897036,211.98,211.97,0.03]
[1756915755141,31.79897036,211.98,211.97,0.03]
[1756915755542,3.97989853,211.98,211.97,0.03]
[1756915756551,8.6973247,211.98,211.97,0.03]
[1756915756752,5.42742617,211.98,211.97,0.03]
[1756915756957,45.4973247,211.98,211.97,0.03]
[1756915757954,26.0,211.95,211.88,19.89491962]
[1756915758150,42.34949265,211.95,211.9,1.8913871]
[1756915758457,3.26989853,211.91,211.88,19.89491962]
[1756915758660,13.07959412,211.92,211.78,0.1]
[1756915758661,3.26989853,211.89,211.87,19.89491962]
[1756915758840,3.97989853,211.88,211.87,19.89491962]
[1756915759944,3.97989853,211.88,211.85,19.89491962]
[1756915760141,3.26989853,211.86,211.85,19.89491962]
[1756915765865,36.82,211.9,211.87,19.89491962]
[1756915767057,3.26989853,211.88,211.87,19.89491962]
[1756915767366,36.82,211.91,211.89,19.89491962]
[1756915767565,26.0,211.94,211.89,19.89491962]
[1756915767759,36.82,211.93,211.89,20.58491962]
[1756915768142,26.0,211.94,211.89,19.89491962]
[1756915768342,37.53,211.93,211.89,19.89491962]
[1756915768579,3.26989853,211.9,211.89,19.89491962]
[1756915768778,3.97989853,211.9,211.86,19.89491962]
[1756915769073,3.26989853,211.87,211.84,19.92491962]
[1756915769372,3.26989853,211.85,211.84,33.52051363]
[1756915769573,0.71,211.87,211.84,33.52051363]
[1756915769746,3.26989853,211.85,211.84,33.52051363]
[1756915770153,3.97989853,211.85,211.84,0.03]
[1756915771374,3.26989853,211.85,211.84,0.03]
[1756915773568,3.97989853,211.85,211.84,0.03]
[1756915782687,3.26989853,211.85,211.84,0.03]
[1756915784258,3.97989853,211.85,211.84,0.03]
[1756915784578,3.26989853,211.85,211.84,0.03]
[1756915785459,3.97989853,211.85,211.84,0.03]
[1756915785764,3.26989853,211.85,211.84,0.03]
[1756915785959,3.97989853,211.85,211.84,0.03]
[1756915786158,3.26989853,211.85,211.84,0.03]
[1756915786476,40.08989853,211.87,211.84,20.58491962]
[1756915786788,3.26989853,211.87,211.84,20.58491962]
[1756915787365,3.26989853,211.87,211.84,25.30533168]
[1756915788177,36.82,211.88,211.84,19.92491962]
[1756915788178,3.26989853,211.85,211.84,19.92491962]
[1756915788766,0.71,211.86,211.84,19.92491962]
[1756915790476,4.72009885,211.86,211.84,19.92491962]
[1756915790785,0.71,211.85,211.84,0.03]
[1756915792074,3.97989853,211.85,211.84,0.03]
[1756915792282,8.70021951,211.85,211.84,0.03]
[1756915793180,3.97989853,211.85,211.84,0.03]
[1756915794998,38.20718982,211.85,211.84,0.03]
[1756915800095,75.02718982,211.85,211.84,0.03]
[1756915800293,38.20718982,211.85,211.84,0.03]
[1756915800482,75.02718982,211.85,211.84,0.03]
[1756915800796,66.32697031,211.85,211.82,0.03]
[1756915801098,6.77686884,211.84,211.83,0.66]
[1756915801465,43.59686884,211.84,211.83,0.66]
[1756915801876,3.50697031,211.84,211.83,0.66]
[1756915802195,40.32697031,211.84,211.83,0.66]
[1756915802387,36.82,211.84,211.83,0.66]
[1756915802603,3.26989853,211.85,211.83,0.66]
[1756915802770,40.08989853,211.85,211.83,0.66]
[1756915803090,40.08989853,211.85,211.82,19.92491962]
[1756915803270,40.08989853,211.85,211.82,20.58491962]
[1756915803471,3.26989853,211.84,211.82,20.58491962]
[1756915804787,3.26989853,211.85,211.82,19.92491962]
[1756915804972,40.08989853,211.85,211.83,0.66]
[1756915805308,3.26989853,211.85,211.84,0.66]
[1756915805601,40.08989853,211.85,211.82,19.92491962]
[1756915805775,42.34949265,211.82,211.79,0.03]
[1756915806089,16.34949265,211.8,211.78,0.1]
[1756915806299,26.0,211.77,211.75,0.03]
[1756915806496,69.73685421,211.77,211.75,0.03]
[1756915806682,70.44685421,211.77,211.75,0.03]
[1756915807000,78.69344609,211.77,211.75,0.03]
[1756915807181,75.16649041,211.77,211.75,0.03]
[1756915807794,74.43649041,211.77,211.75,0.03]
[1756915807984,75.14649041,211.77,211.75,0.03]
[1756915809282,6.79438625,211.76,211.75,0.03]
[1756915809683,7.50438625,211.76,211.75,0.03]
[1756915810997,12.22671341,211.76,211.75,0.03]
[1756915812492,12.22671341,211.76,211.74,0.03]
[1756915812707,69.67438625,211.75,211.74,0.03]
[1756915812893,29.26989853,211.73,211.72,0.03]
[1756915813092,69.67438625,211.73,211.72,0.03]
[1756915813288,70.32438625,211.73,211.72,0.03]
[1756915813687,70.32438625,211.73,211.7,0.03]
[1756915813881,20.51601018,211.72,211.7,0.03]
[1756915814084,20.51601018,211.72,211.67,0.03]
[1756915814085,56.74601018,211.71,211.67,0.03]
[1756915814284,47.07360451,211.68,211.6,0.1]
[1756915814496,3.26989853,211.61,211.6,0.1]
[1756915814696,36.9,211.62,211.6,0.1]
[1756915814900,3.26989853,211.61,211.6,0.82]
[1756915815392,3.26989853,211.61,211.6,0.1]
[1756915815588,5.12531192,211.61,211.6,0.1]
[1756915815902,5.77531192,211.61,211.6,0.1]
[1756915816206,9.28383049,211.61,211.6,0.1]
[1756915816386,14.00950508,211.61,211.6,0.1]
[1756915817080,10.50098651,211.61,211.6,0.1]
[1756915817306,26.0,211.64,211.6,0.1]
[1756915817490,36.94,211.63,211.6,0.82]
[1756915817690,5.37435656,211.67,211.6,0.82]
[1756915817691,34.2,211.64,211.6,0.1]
[1756915817881,5.12531192,211.61,211.6,0.1]
[1756915818083,42.12531192,211.61,211.6,0.1]
[1756915818686,46.85098651,211.61,211.6,0.1]
[1756915819007,47.50098651,211.61,211.6,0.1]
[1756915820494,9.85098651,211.61,211.6,0.1]
[1756915820801,42.12531192,211.61,211.6,0.1]
[1756915821595,5.12531192,211.61,211.6,0.1]
[1756915821897,42.12531192,211.61,211.6,0.1]
[1756915822286,46.85098651,211.61,211.6,0.1]
[1756915824405,5.12531192,211.61,211.6,0.1]
[1756915824606,42.10531192,211.61,211.6,0.1]
[1756915825003,47.48098651,211.61,211.6,0.1]
[1756915827288,26.0,211.58,211.57,0.03]
[1756915827495,73.23062384,211.58,211.57,0.03]
[1756915827793,73.88062384,211.58,211.57,0.03]
[1756915828487,78.60696848,211.58,211.57,0.03]
[1756915829294,78.60696848,211.58,211.55,0.03]
[1756915829608,26.0,211.53,211.47,0.72]
[1756915829812,5.12531192,211.48,211.47,0.72]
[1756915830013,26.0,211.55,211.47,0.72]
[1756915830314,5.12531192,211.49,211.47,20.61491962]
[1756915830500,5.12531192,211.48,211.45,19.89491962]
[1756915830704,5.12531192,211.46,211.45,19.89491962]
[1756915831111,5.12531192,211.46,211.45,20.61491962]
[1756915831607,4.72794835,211.51,211.45,25.34417003]
[1756915831825,30.72767469,211.53,211.47,19.89491962]
[1756915832026,5.12531192,211.48,211.47,19.89491962]
[1756915832206,26.0,211.54,211.47,19.89491962]
[1756915832409,0.10508038,211.62,211.51,4.72790884]
[1756915832410,5.37589792,211.6,211.51,4.72790884]
[1756915832715,5.37589792,211.6,211.52,0.72]
[1756915832716,5.12531192,211.53,211.52,0.72]
[1756915832885,5.12531192,211.54,211.52,0.72]
[1756915833089,5.12531192,211.54,211.53,0.72]
[1756915833700,5.12531192,211.54,211.52,19.89491962]
[1756915833888,5.12531192,211.53,211.52,19.89491962]
[1756915834314,5.12531192,211.53,211.49,19.89491962]
[1756915834614,37.02,211.55,211.49,19.89491962]
[1756915834615,37.02,211.52,211.5,0.72]
[1756915834995,37.02,211.52,211.51,19.89491962]
[1756915835397,37.02,211.52,211.51,20.61491962]
[1756915835600,37.02,211.52,211.51,19.89491962]
[1756915835796,42.14531192,211.52,211.51,19.89491962]
[1756915836000,42.14531192,211.52,211.49,19.89491962]
[1756915836201,5.12531192,211.5,211.49,33.49051363]
[1756915836404,5.12531192,211.5,211.47,19.89491962]
[1756915836717,5.12531192,211.48,211.45,20.64491962]
[1756915836896,5.12531192,211.46,211.45,34.24051363]
[1756915837720,37.02,211.49,211.45,34.24051363]
[1756915838011,5.12531192,211.46,211.45,34.24051363]
[1756915838825,5.12531192,211.46,211.45,19.92491962]
[1756915839613,37.02,211.49,211.45,19.92491962]
[1756915839815,5.12531192,211.46,211.45,19.92491962]
[1756915841626,5.12531192,211.46,211.45,0.03]
[1756915842005,42.39848346,211.49,211.45,19.92491962]
[1756915842206,5.12531192,211.46,211.45,19.92491962]
[1756915845028,5.12531192,211.46,211.45,0.03]
[1756915845325,5.12531192,211.46,211.45,19.92491962]
[1756915845719,5.12531192,211.46,211.45,0.03]
[1756915846119,5.12531192,211.46,211.45,19.92491962]
[1756915846327,5.12531192,211.46,211.45,0.03]
[1756915846512,10.57433868,211.46,211.45,0.03]
[1756915847906,15.6996506,211.46,211.45,0.03]
[1756915848632,26.0,211.43,211.42,0.03]
[1756915848840,68.10531192,211.43,211.42,0.03]
[1756915849031,68.82531192,211.43,211.42,0.03]
[1756915849237,73.55500969,211.43,211.42,0.03]
[1756915849410,77.04201961,211.43,211.42,0.03]
[1756915849612,77.04201961,211.43,211.4,0.03]
[1756915849837,5.12531192,211.41,211.4,0.03]
[1756915850335,5.84531192,211.41,211.4,0.03]
[1756915851211,10.57545713,211.41,211.4,0.03]
[1756915852838,5.45014521,211.41,211.4,0.03]
[1756915853017,47.59545713,211.41,211.4,0.03]
[1756915853545,51.08720214,211.41,211.4,0.03]
[1756915855242,26.0,211.39,211.38,0.1]
[1756915855445,71.61907197,211.39,211.38,0.1]
[1756915855743,72.33907197,211.39,211.38,0.1]
[1756915857231,77.06966471,211.39,211.38,0.1]
[1756915858629,5.12531192,211.38,211.37,0.03]
[1756915858830,26.0,211.35,211.29,20.60491962]
[1756915859029,5.12531192,211.3,211.29,34.20051363]
[1756915860253,5.12531192,211.3,211.29,38.93334528]
[1756915860626,26.0,211.35,211.34,19.89491962]
[1756915860627,5.12531192,211.35,211.34,19.89491962]
[1756915860854,42.10531192,211.35,211.34,19.89491962]
[1756915861831,0.72,211.37,211.34,19.89491962]
[1756915861832,26.0,211.38,211.34,19.89491962]
[1756915862038,5.12531192,211.35,211.34,19.89491962]
[1756915862531,5.12531192,211.35,211.34,20.60491962]
[1756915863248,4.73017118,211.41,211.36,19.89491962]
[1756915863449,5.12531192,211.37,211.36,19.89491962]
[1756915863664,0.72,211.44,211.38,19.89491962]
[1756915863951,5.12531192,211.39,211.38,19.89491962]
[1756915864338,42.12531192,211.39,211.38,19.89491962]
[1756915864740,37.0,211.39,211.38,19.89491962]
[1756915864933,42.12531192,211.39,211.38,19.89491962]
[1756915865948,42.84531192,211.39,211.38,19.89491962]
[1756915866150,42.12531192,211.39,211.38,19.89491962]
[1756915866345,26.0,211.43,211.38,25.33573615]
[1756915866544,5.12531192,211.4,211.39,0.71]
[1756915867242,5.12531192,211.4,211.38,24.62573615]
[1756915867443,5.12531192,211.39,211.38,38.22133016]
[1756915867954,5.12531192,211.43,211.42,19.89491962]
[1756915868257,42.10531192,211.43,211.42,19.89491962]
[1756915868452,42.10531192,211.43,211.42,20.60491962]
[1756915869242,42.10531192,211.43,211.42,25.3348411]
[1756915869553,5.12531192,211.43,211.42,25.3348411]
[1756915869743,36.98,211.44,211.42,25.3348411]
[1756915869945,5.12531192,211.43,211.42,25.3348411]
[1756915870242,36.98,211.44,211.42,25.3348411]
[1756915870553,5.18531192,211.43,211.42,24.6248411]
[1756915873533,5.84531192,211.43,211.4,19.89491962]
[1756915873836,5.12531192,211.41,211.4,33.49051363]
[1756915874052,42.06531192,211.41,211.4,33.49051363]
[1756915875141,42.06531192,211.41,211.4,19.89491962]
[1756915875345,42.72531192,211.41,211.4,19.89491962]
[1756915875644,42.06531192,211.41,211.4,19.89491962]
[1756915876054,26.0,211.39,211.35,19.89491962]
[1756915876254,5.12531192,211.36,211.35,33.49051363]
[1756915877033,5.12531192,211.36,211.35,38.22200168]
[1756915877439,3.2875197,211.36,211.35,38.22200168]
[1756915877764,40.2275197,211.38,211.37,19.89491962]
[1756915877930,3.2875197,211.38,211.37,19.89491962]
[1756915878359,0.72,211.43,211.39,19.89491962]
[1756915878652,36.92,211.42,211.39,19.89491962]
[1756915878855,0.66,211.41,211.36,19.89491962]
[1756915879059,37.58,211.4,211.36,19.89491962]
[1756915879251,37.58,211.39,211.36,19.89491962]
[1756915879450,3.2875197,211.37,211.36,33.49051363]
[1756915881241,4.73148805,211.35,211.34,0.03]
[1756915881441,48.45195964,211.35,211.34,0.03]
[1756915881640,49.11195964,211.35,211.34,0.03]
[1756915881869,62.26203844,211.35,211.34,0.03]
[1756915882039,49.11195964,211.35,211.34,0.03]
[1756915883476,26.0,211.32,211.31,0.03]
[1756915883634,66.2275197,211.32,211.31,0.03]
[1756915883834,66.8875197,211.32,211.31,0.03]
[1756915885264,71.61967945,211.32,211.31,0.03]
[1756915885559,84.76975825,211.32,211.31,0.03]
[1756915885763,26.66,211.32,211.31,0.03]
[1756915885967,66.2075197,211.32,211.31,0.03]
[1756915886263,66.8675197,211.32,211.31,0.03]
[1756915886564,71.59967945,211.32,211.31,0.03]
[1756915887846,84.74975825,211.32,211.31,0.03]
[1756915888137,70.93967945,211.32,211.31,0.03]
[1756915888344,66.2075197,211.32,211.31,0.03]
[1756915888586,29.2875197,211.32,211.31,0.03]
[1756915888739,26.0,211.32,211.31,0.03]
[1756915888944,36.92,211.32,211.31,0.03]
[1756915889166,3.2875197,211.32,211.31,0.03]
[1756915889375,36.92,211.32,211.31,0.03]
[1756915889763,5.39129051,211.36,211.31,0.03]
[1756915889764,0.66,211.36,211.31,0.03]
[1756915889946,4.73103163,211.38,211.32,20.57491962]
[1756915889947,0.66,211.38,211.32,20.57491962]
[1756915890148,0.66,211.4,211.35,19.89491962]
[1756915890445,3.2875197,211.36,211.35,19.89491962]
[1756915890667,36.94,211.37,211.35,20.57491962]
[1756915890850,3.2875197,211.36,211.35,19.89491962]
[1756915891046,3.9475197,211.36,211.33,19.89491962]
[1756915891253,3.2875197,211.34,211.33,19.89491962]
[1756915893166,8.01934068,211.34,211.31,19.92491962]
[1756915893366,3.2875197,211.32,211.31,19.92491962]
[1756915894655,8.01967945,211.32,211.31,19.92491962]
[1756915894849,8.01967945,211.32,211.31,0.03]
[1756915894850,3.2875197,211.32,211.31,0.03]
[1756915896967,11.88551887,211.41,211.31,0.03]
[1756915897175,3.2875197,211.34,211.31,20.10491962]
[1756915897378,40.2275197,211.34,211.31,20.10491962]
[1756915897870,4.73036896,211.4,211.34,19.89491962]
[1756915898055,40.45823292,211.39,211.34,19.89491962]
[1756915898260,3.2875197,211.37,211.34,19.89491962]
[1756915898656,36.94,211.38,211.34,19.89491962]
[1756915898857,3.2875197,211.37,211.34,19.89491962]
[1756915899051,3.2875197,211.36,211.34,19.89491962]
[1756915899272,3.2875197,211.35,211.34,19.89491962]
[1756915899967,26.0,211.33,211.3,19.89491962]
[1756915900169,3.2875197,211.31,211.3,19.89491962]
[1756915901275,36.94,211.33,211.32,19.89491962]
[1756915901774,3.9675197,211.33,211.32,19.89491962]
[1756915902148,3.9675197,211.33,211.3,19.89491962]
[1756915902364,3.2875197,211.31,211.3,19.89491962]
[1756915903470,3.9675197,211.31,211.3,19.89491962]
[1756915903676,8.6999034,211.31,211.3,19.89491962]
[1756915903870,3.9675197,211.31,211.29,0.03]
[1756915904174,41.67219977,211.32,211.3,19.89491962]
[1756915904378,41.67219977,211.32,211.29,0.03]
[1756915904379,0.68,211.3,211.29,0.03]
[1756915904557,5.41260766,211.3,211.29,19.92491962]
[1756915905165,4.73260766,211.3,211.29,19.92491962]
[1756915905475,3.2875197,211.3,211.29,19.92491962]
[1756915905781,37.62,211.32,211.29,19.92491962]
[1756915905962,3.2875197,211.3,211.29,19.92491962]
[1756915906353,3.2875197,211.31,211.29,0.03]
[1756915906557,36.94,211.31,211.3,19.89491962]
[1756915906963,26.0,211.33,211.3,19.89491962]
[1756915907164,36.94,211.31,211.3,19.89491962]
[1756915907365,36.94,211.32,211.3,19.89491962]
[1756915908368,0.68,211.34,211.3,24.62751473]
[1756915908570,36.94,211.32,211.3,24.90751473]
[1756915908891,36.94,211.34,211.32,19.89491962]
[1756915909062,0.68,211.33,211.32,19.89491962]
[1756915909262,40.2275197,211.34,211.32,19.89491962]
[1756915909480,36.94,211.34,211.32,19.89491962]
[1756915909793,3.2875197,211.38,211.34,19.89491962]
[1756915910091,40.45568105,211.37,211.34,19.89491962]
[1756915910270,36.94,211.37,211.34,19.89491962]
[1756915910475,37.62,211.37,211.34,19.89491962]
[1756915911098,29.2875197,211.35,211.31,19.89491962]
[1756915911263,3.2875197,211.32,211.31,19.89491962]
[1756915912100,3.2875197,211.33,211.31,19.89491962]
[1756915912274,36.94,211.33,211.31,19.89491962]
[1756915912479,36.94,211.34,211.31,19.89491962]
[1756915913380,37.62,211.34,211.31,19.89491962]
[1756915913783,36.94,211.34,211.31,24.62725208]
[1756915914086,3.2875197,211.38,211.33,19.89491962]
[1756915914388,3.2875197,211.39,211.37,19.89491962]
[1756915914588,36.94,211.38,211.37,19.89491962]
[1756915914977,45.63833623,211.38,211.35,19.89491962]
[1756915915177,3.2875197,211.36,211.35,19.89491962]
[1756915915677,26.0,211.35,211.32,19.89491962]
[1756915915883,3.9675197,211.36,211.32,19.89491962]
[1756915915884,3.2875197,211.33,211.32,19.89491962]
[1756915916081,3.9675197,211.33,211.32,19.89491962]
[1756915917373,3.2875197,211.33,211.32,19.89491962]
[1756915918196,26.0,211.34,211.32,19.89491962]
[1756915918401,36.96,211.33,211.32,19.89491962]
[1756915919972,40.2475197,211.33,211.32,19.89491962]
[1756915920389,26.0,211.36,211.32,19.89491962]
[1756915920577,0.68,211.38,211.36,19.89491962]
[1756915920578,3.2875197,211.37,211.36,19.89491962]
[1756915920783,40.9075197,211.37,211.36,19.89491962]
[1756915921271,26.0,211.34,211.31,19.89491962]
[1756915921471,3.2875197,211.32,211.31,19.89491962]
[1756915921986,40.2475197,211.33,211.31,19.89491962]
[1756915922200,36.96,211.33,211.31,19.89491962]
[1756915922499,40.2475197,211.33,211.31,19.89491962]
[1756915922879,0.68,211.35,211.31,24.62715307]
[1756915923080,37.0,211.35,211.33,19.89491962]
[1756915923279,40.2875197,211.35,211.33,19.89491962]
[1756915923500,3.9675197,211.34,211.33,19.89491962]
[1756915924000,3.2875197,211.34,211.33,19.89491962]
[1756915924209,37.0,211.35,211.33,24.62681797]
[1756915924377,7.04810049,211.34,211.33,24.62681797]
[1756915924578,3.52403184,211.34,211.33,27.91433767]
[1756915924783,36.98,211.37,211.33,28.19433767]
[1756915924978,7.0491394,211.36,211.35,19.89491962]
[1756915927496,7.0469913,211.36,211.35,19.89491962]